Cogmind - Beta 12 @@@ ROGUE MODE // 2023.09.18 @ 15:22:52 Player: morimori Result: Destroyed by S-43 Plague with Heavy Machine Gun Performance ------------- Evolutions (7) 3500 Regions Visited (15) 3000 Robots Destroyed (303) 1515 Value Destroyed (11829) 11829 Prototype IDs (20) 400 Alien Tech Used (0) 0 Bonus (1923) 1923 TOTAL SCORE: 22167 Bonus ------- High Alert Combat Kills 1923 Cogmind --------- Core Integrity 0/1300 Matter 280/300 Energy 100/100 System Corruption 53% Temperature Cool (0) Movement Core (50) Location -3/Research Parts ------- > --- POWER (2) -------- (None) > --- PROPULSION (6) --- (None) > --- UTILITY (8) ------ Armor Integrity Analyzer > --- WEAPON (5) ------- (None) > --- INVENTORY (5) ---- Micro Antimatter Reactor Micro Antimatter Reactor Advanced Heat Sink Advanced Reaction Control System Advanced Recalibrator Peak State ------------ > --- POWER ------------ Light Particle Reactor Graviton Reactor > --- PROPULSION ------- Advanced Heavy Treads Improved Heavy Siege Treads Flexi-carbon Leg Myomer Leg > --- UTILITY ---------- Improved Heat Sink Advanced Heat Sink Advanced Heat Sink Large Storage Unit Advanced Signal Interpreter Improved Targeting Computer Advanced Target Analyzer Armor Integrity Analyzer > --- WEAPON ----------- Quantum Rifle Compact HERF Cannon Heavy Phase Cannon Hypervelocity Coil Gun Fusion Bomb Launcher > --- INVENTORY -------- Light Antimatter Reactor Light Particle Reactor Micro Antimatter Reactor Graviton Reactor Myomer Leg Small Storage Unit Long-range Terrain Scanner Advanced Melee Analysis Suite Advanced Reaction Control System Thermal Shield Advanced Recalibrator Variable Charge Gun Heavy Phase Cannon Railgun Hardcell Cannon [Rating: 138] Favorites ----------- Power Micro Fission Core Engine F-cell Engine Power Core Micro Fission Core Reactor Graviton Reactor Propulsion Aluminum Leg Treads Improved Treads Leg Aluminum Leg Wheel Wheel Hover Unit Antigrav System Flight Unit Impulse Thruster Array Utility Advanced Heat Sink Device Advanced Heat Sink Storage Large Storage Unit Processor Improved Target Analyzer Hackware System Shield Weapon Plasma Cannon Energy Gun Cooled Plasma Rifle Energy Cannon Plasma Cannon Ballistic Gun Assault Rifle Ballistic Cannon Hardcell Cannon Launcher Long-range Missile Launcher Build | -11 -10 -9 -8 -7 -6 -6 -5 -5 -5 -5 -5 -4 -4 -4 -3 ------- Run | Jun Mat Mat Mat Fac Fac Ext Fac Was Fac Upp Upp Fac Upp Upp Res Slots Evolved 14 | . . 2 2 2 2 . 2 . . . . 2 . . 2 Power 1 | . . . . . . . 1 . . . . . . . . Propulsion 4 | . . 2 . . 1 . . . . . . . . . 1 Utility 6 | . . . 1 2 1 . . . . . . 1 . . 1 Weapon 3 | . . . 1 . . . 1 . . . . 1 . . . Parts Attached 300 | 8 14 34 19 20 8 9 4 4 70 9 . 20 6 . 75 Power 35 | 1 3 6 1 2 1 . 1 1 6 . . 2 1 . 10 Engine 19 | 1 3 6 . 1 1 . 1 1 3 . . 1 1 . . Core 6 | . . . 1 1 . . . . 3 . . 1 . . . Reactor 10 | . . . . . . . . . . . . . . . 10 Propulsion 97 | 2 2 19 8 6 3 4 1 . 20 5 . 5 1 . 21 Treads 8 | . . . . . . . . . 1 . . . 1 . 6 Leg 78 | 2 2 19 8 6 3 4 1 . 18 5 . 3 . . 7 Wheel 4 | . . . . . . . . . . . . 2 . . 2 Hover 2 | . . . . . . . . . 1 . . . . . 1 Flight 5 | . . . . . . . . . . . . . . . 5 Utility 71 | 3 4 1 6 8 1 1 1 . 22 2 . 3 1 . 18 Device 53 | 2 2 1 6 5 1 1 1 . 15 2 . 2 1 . 14 Storage 5 | 1 2 . . . . . . . 2 . . . . . . Processor 8 | . . . . . . . . . 3 . . 1 . . 4 Hackware 5 | . . . . 3 . . . . 2 . . . . . . Protection . | . . . . . . . . . . . . . . . . Artifact . | . . . . . . . . . . . . . . . . Weapon 97 | 2 5 8 4 4 3 4 1 3 22 2 . 10 3 . 26 Energy Gun 42 | 2 3 5 3 2 2 2 1 . 6 1 . 6 1 . 8 Energy Cannon 24 | . . 2 1 2 . 1 . . 12 1 . . 1 . 4 Ballistic Gun 10 | . 2 . . . . . . . 1 . . . . . 7 Ballistic Cannon 2 | . . . . . . . . . . . . . . . 2 Launcher 19 | . . 1 . . 1 1 . 3 3 . . 4 1 . 5 Special Weapon . | . . . . . . . . . . . . . . . . Impact Weapon . | . . . . . . . . . . . . . . . . Slashing Weapon . | . . . . . . . . . . . . . . . . Piercing Weapon . | . . . . . . . . . . . . . . . . Special Melee Weapon . | . . . . . . . . . . . . . . . . Unidentified Prototypes 3 | . . . . . . . . . 2 . . . . . 1 Corrupted Parts 7 | . . . . . . . . . 2 1 . . . . 4 System Corruption 32 | . . . . . . . . . 8 10 . . . . 14 Parts Lost 117 | . 4 3 . 7 . 9 . 8 12 7 . 19 3 1 44 Power 12 | . 2 1 . 1 . . . 2 1 . . 2 . . 3 Propulsion 42 | . . . . . . 5 . 3 5 4 . 7 1 1 16 Utility 28 | . 1 1 . 3 . 2 . 2 4 2 . 3 1 . 9 Weapon 35 | . 1 1 . 3 . 2 . 1 2 1 . 7 1 . 16 Highest Loss Streak 18 | . 1 2 . 4 . 7 . 8 3 6 . 7 2 1 18 To Critical Strikes 1 | . . . . 1 . . . . . . . . . . . Average Slot Usage (%) 93 | . 100 99 100 99 98 95 83 55 91 99 100 92 85 78 81 Engine 6 | . 14 11 7 3 1 6 6 4 4 5 5 4 5 5 1 Core 2 | . . . 1 3 4 . . . 4 5 5 5 5 5 . Treads 1 | . . . . . . . . . . . . . 1 5 8 Leg 24 | . 28 43 36 29 33 30 26 15 24 28 29 21 5 . 5 Device 16 | . 14 11 18 19 25 24 18 13 19 17 17 14 13 10 13 Storage 7 | . 14 11 9 7 6 6 5 2 4 5 5 5 5 5 3 Processor 5 | . . . . . . . . . 4 11 11 14 15 15 16 Hackware 2 | . . . . 10 6 6 5 5 2 . . . . . . Energy Gun 10 | . 17 15 1 16 15 14 11 3 7 . . 7 15 15 7 Energy Cannon 8 | . . 6 25 5 3 3 5 . 10 22 23 12 4 5 6 Ballistic Gun 1 | . 10 . . . . . . . . . . . . . 2 Naked Turns . | . . . . . . . . . . . . . . . . Heaviest Build 93 | 13 50 36 41 39 46 49 54 65 76 75 75 83 70 69 93 Greatest Support 196 | 20 20 43 50 53 71 71 60 60 91 89 80 80 26 10 196 Greatest Overweight (x) 6 | 3 2 1 . . . 1 1 2 1 1 . 4 6 6 6 Average Overweight (x) . | . 1 . . . . . . . . . . . 2 6 . Largest Inventory Capacity 20 | 8 20 15 15 15 15 15 15 15 15 15 15 15 15 15 15 Average Capacity 14 | 7 16 15 15 15 15 15 15 11 13 15 15 15 15 15 14 Most Carried 20 | 7 20 15 15 15 15 15 10 10 15 14 10 14 9 6 15 Average Carried 12 | 3 13 14 14 12 14 12 9 7 13 10 10 10 6 6 12 Final Capacity 15 | 8 15 15 15 15 15 15 15 5 15 15 15 15 15 15 5 Final Carried 15 | 6 15 15 15 15 15 10 9 5 14 10 10 10 6 6 5 Class Distribution -------------------- 61% | Scavenger-Gunner 15% | Scavenger-Mutant 14% | Mutant 3% | Scavenger-Tank 3% | Hacker-Mutant Dominant Class ---------------- Mutant | -10/Materials Scavenger-Mutant | -9/Materials Scavenger-Gunner | -8/Materials Scavenger-Gunner | -7/Factory Scavenger-Tank | -6/Factory Scavenger-Tank | -6/Extension Scavenger-Gunner | -5/Factory Mutant | -5/Waste Scavenger-Gunner | -5/Factory Scavenger-Gunner | -5/Upper Caves Scavenger-Gunner | -5/Upper Caves Scavenger-Gunner | -4/Factory Scavenger-Gunner | -4/Upper Caves Scavenger-Gunner | -4/Upper Caves Scavenger-Gunner | -3/Research Resources | -11 -10 -9 -8 -7 -6 -6 -5 -5 -5 -5 -5 -4 -4 -4 -3 ----------- Run | Jun Mat Mat Mat Fac Fac Ext Fac Was Fac Upp Upp Fac Upp Upp Res Matter Collected 4748 | 280 546 393 176 182 . 237 40 . 952 146 . 311 77 . 1408 Remotely . | . . . . . . . . . . . . . . . . Salvage Created 15761 | 289 891 1518 952 876 76 754 165 260 3739 436 . 2425 150 60 3170 Parts 633 | 35 43 77 36 30 . 18 11 . 146 18 . 53 3 3 160 Haulers Intercepted 3 | . . . . 2 . . . . 1 . . . . . . Recyclers Shooed 24 | 1 2 2 . . . 4 1 . 5 . . 4 . . 5 Parts Field Recycled . | . . . . . . . . . . . . . . . . Retrieved Matter . | . . . . . . . . . . . . . . . . Parts Self-Destructed 20 | . . . . . . . . . . 15 . . 2 3 . Prevented 1 | . . . . . . . . . . . . . 1 . . Kills | -11 -10 -9 -8 -7 -6 -6 -5 -5 -5 -5 -5 -4 -4 -4 -3 ------- Run | Jun Mat Mat Mat Fac Fac Ext Fac Was Fac Upp Upp Fac Upp Upp Res Combat Hostiles Destroyed 198 | . 15 26 13 11 3 5 . 1 51 7 . 24 5 1 36 Guns 74 | . 14 14 . 8 . 1 . . 16 . . 5 . . 16 Cannons 65 | . . 7 12 1 . . . . 22 6 . 5 1 1 10 AOE 34 | . . 3 . . 3 1 . 1 6 . . 9 4 . 7 Classes Destroyed 19 | 3 4 3 3 3 . 1 . 1 . . . . . . 1 Worker 19 | 2 . 1 . 2 . . 2 . 5 . . 4 . . 3 Builder 13 | . 1 2 . . . . 1 . 4 . . 3 . . 2 Tunneler 12 | 9 . . . . . . 1 . 2 . . . . . . Hauler 3 | . . . . 2 . . . . 1 . . . . . . Recycler 30 | 1 2 3 2 2 . 4 1 . 5 . . 7 . . 3 Carrier 1 | . . . 1 . . . . . . . . . . . . Mechanic 1 | . . . . . . . . . . . . . . . 1 Operator 12 | . 2 3 2 . . . . . 3 . . 1 . . 1 Watcher 14 | . 3 3 . 1 . . . . . . . 3 . . 4 Swarmer 28 | . . 3 . . . . . . 14 . . 4 4 . 3 Grunt 86 | . 15 14 8 5 2 . . . 20 5 . 12 . . 5 Brawler 7 | . . . 2 . 1 . . . 1 . . 2 . . 1 Duelist 6 | . . 2 . . . . . . . . . 3 . . 1 Protector 2 | . . . 1 . . . . . . . . 1 . . . Sentry 23 | . . 7 2 2 . 2 . . 3 1 . . 1 . 5 Hunter 13 | . . . . 3 . 1 . . 1 . . . . . 8 Programmer 30 | . . . . 1 . . . . 12 1 . 2 . 1 13 Behemoth 2 | . . . . . . 2 . . . . . . . . . Compactor 1 | . . . . . . . . 1 . . . . . . . Best Kill Streak 12 | 4 6 6 7 6 3 3 5 1 6 4 . 12 11 1 10 Combat Bots Only 9 | . 4 4 3 3 3 2 . 1 5 4 . 9 4 1 4 Max Kills in Single Turn 4 | 1 1 2 2 2 3 1 1 1 4 1 . 4 4 1 3 Gunslinging . | . . . . . . . . . . . . . . . . Exploded 4 | . . 2 . . 3 1 . 1 3 . . 4 4 . 2 Melee . | . . . . . . . . . . . . . . . . Uniques/NPCs Destroyed . | . . . . . . . . . . . . . . . . Combat | -11 -10 -9 -8 -7 -6 -6 -5 -5 -5 -5 -5 -4 -4 -4 -3 -------- Run | Jun Mat Mat Mat Fac Fac Ext Fac Was Fac Upp Upp Fac Upp Upp Res Damage Taken 18835 | . 856 1021 576 910 94 1157 . 410 2932 917 . 2044 310 192 7416 Core 3088 | . 128 178 102 129 . 166 . 183 380 96 . 185 56 172 1313 Absorbed by Shields . | . . . . . . . . . . . . . . . . Regen/Repaired (Parts) 402 | . 65 248 . . . . . . . . . . . . 89 Core Remaining (%) 67 | 100 48 55 81 81 . 80 . . . . 34 . . 64 . Volleys Fired 605 | 23 88 97 34 40 1 32 6 5 104 13 . 58 15 3 86 Largest 5 | 2 2 2 3 3 3 3 4 4 4 4 . 5 4 4 5 Hottest 414 | 100 105 136 204 200 183 235 291 214 337 359 . 414 315 315 403 Shots Fired 1866 | 46 176 194 99 120 3 94 19 15 399 56 . 227 58 12 348 Gun 1123 | 46 176 142 4 98 2 62 13 4 195 2 . 123 45 9 202 Cannon 695 | . . 50 95 22 . 25 6 . 198 54 . 95 12 3 135 Launcher 48 | . . 2 . . 1 7 . 11 6 . . 9 1 . 11 Special . | . . . . . . . . . . . . . . . . Kinetic 185 | . 78 . . . . . . . 10 . . . . . 97 Thermal 1477 | 46 98 192 99 120 2 87 19 4 376 56 . 181 42 9 146 Explosive 41 | . . 2 . . 1 7 . 8 2 . . 9 1 . 11 Electromagnetic 163 | . . . . . . . . 3 11 . . 37 15 3 94 Robot Hit Streak 28 | 5 14 17 8 15 4 14 18 6 18 10 . 28 7 4 14 Robot Miss Streak 7 | 2 5 6 3 3 . 3 1 2 4 3 . 3 2 3 7 Penetration Max 2 | . . . . . . . . . . . . . . . 2 Secondary Targets 2 | . . . . . . . . . . . . 2 . . . Max Gunslinging Chain 1 | . . . . . . . . . . . . 1 . . . Shots Hit Robots 1119 | 28 108 120 59 73 3 75 11 12 233 29 . 140 14 7 207 Core Hits 542 | 13 44 51 25 33 6 21 6 4 108 11 . 94 9 1 116 Critical Kills 8 | . . . 1 . . 1 . . 2 1 . . . . 3 Critical Parts Destroyed 8 | . . . . . . . . . . . . . . . 8 Critical Strikes 84 | . 11 8 1 4 . 5 . 1 15 1 . 15 3 . 20 Burn 57 | . 11 8 . 4 . 4 . 1 13 . . 13 3 . . Meltdown 5 | . . . 1 . . 1 . . 2 1 . . . . . Destroy 11 | . . . . . . . . . . . . . . . 11 Blast 2 | . . . . . . . . . . . . . . . 2 Corrupt 9 | . . . . . . . . . . . . 2 . . 7 Melee Attacks . | . . . . . . . . . . . . . . . . Impact . | . . . . . . . . . . . . . . . . Slashing . | . . . . . . . . . . . . . . . . Piercing . | . . . . . . . . . . . . . . . . Sneak Attacks . | . . . . . . . . . . . . . . . . Combat Hostiles . | . . . . . . . . . . . . . . . . Follow-up Attacks . | . . . . . . . . . . . . . . . . Damage Inflicted 34388 | 374 1399 2037 1222 1403 693 1941 238 1318 8052 934 . 6062 617 166 7932 Guns 14494 | 374 1393 1306 43 1071 39 1102 158 30 3504 24 . 2027 211 80 3132 Cannons 12211 | . . 554 1179 316 . 524 80 . 3873 910 . 1564 70 86 3055 Explosions 7538 | . . 166 . . 654 315 . 1288 619 . . 2471 336 . 1689 Melee . | . . . . . . . . . . . . . . . . Ramming 145 | . 6 11 . 16 . . . . 56 . . . . . 56 Kinetic 2229 | . 618 . . . . . . . 183 . . . . . 1428 Thermal 22959 | 374 775 1860 1222 1387 619 1626 238 30 6930 934 . 3368 240 156 3200 Explosive 6156 | . . 166 . . 74 315 . 1280 354 . . 2034 336 . 1597 Electromagnetic 2899 | . . . . . . . . 8 529 . . 660 41 10 1651 Impact . | . . . . . . . . . . . . . . . . Slashing . | . . . . . . . . . . . . . . . . Piercing . | . . . . . . . . . . . . . . . . Highest Corruption 53 | . . 2 . 1 . . . 2 12 22 22 1 11 11 53 Average Corruption 9 | . . 2 . 1 . . . 1 5 20 22 1 4 11 25 Corruption Purged 11 | . . . . . . . . . 11 . . . . . . Corruption Blocked . | . . . . . . . . . . . . . . . . Effects 202 | . . 18 . 2 . . . 3 55 28 2 2 10 2 80 Message Errors 43 | . . 5 . . . . . 1 14 5 1 1 4 . 12 Matter Fused 38 | . . 6 . . . . . 2 13 5 1 1 2 1 7 Heat Flow Errors 13 | . . 3 . . . . . . 1 3 . . . 1 5 Energy Discharges 21 | . . 2 . . . . . . 9 1 . . 1 . 8 Parts Rejected 5 | . . . . . . . . . . . . . . . 5 Parts Fused 4 | . . . . . . . . . 1 2 . . . . 1 Data Loss (minor) 23 | . . 2 . . . . . . 2 7 . . 2 . 10 Data Loss (major) 5 | . . . . 1 . . . . 1 1 . . 1 . 1 Misfires 13 | . . . . . . . . . 6 4 . . . . 3 Alerts 7 | . . . . 1 . . . . 3 . . . . . 3 Misdirections 12 | . . . . . . . . . 1 . . . . . 11 Weapon Failures 18 | . . . . . . . . . 4 . . . . . 14 Overload Shots . | . . . . . . . . . . . . . . . . Overflow Damage 496 | . . 20 13 . 48 35 . 21 100 27 . 148 . . 84 Projectiles 152 | . . 12 13 . . . . . 56 27 . 12 . . 32 Explosions 337 | . . 8 . . 48 35 . 21 37 . . 136 . . 52 Melee 7 | . . . . . . . . . 7 . . . . . . Knockbacks 3 | . . . . . . . . . . . . . . . 3 Impact . | . . . . . . . . . . . . . . . . Kinetic 3 | . . . . . . . . . . . . . . . 3 Secondary . | . . . . . . . . . . . . . . . . Self-Inflicted Damage 661 | . . . . . . 45 . 185 . . . 305 . . 126 Shots 21 | . . . . . . 1 . 10 . . . 7 . . 3 Rammed 6 | . . . . . . . . . . . . . . . 6 Targets Rammed 22 | . 4 2 . 3 . . . . 4 . . . . . 9 Kicked 16 | . 4 2 . 3 . . . . 4 . . . . . 3 Crushed . | . . . . . . . . . . . . . . . . Highest Temperature 525 | 195 311 344 234 225 . 48 81 3 363 290 . 418 378 525 386 Average Temperature 91 | 78 111 68 73 60 . 16 44 2 72 110 . 130 153 252 110 Received Heat Transfer 3339 | . 498 354 234 300 45 180 . . 667 309 . 306 9 . 437 Effects 11 | . 2 . 2 . . . . . . . . 1 . 2 4 Shutdowns 3 | . . . . . . . . . . . . . . 1 2 Energy Bleed 1 | . . . . . . . . . . . . 1 . . . Interference 5 | . 2 . 2 . . . . . . . . . . . 1 Matter Decay 1 | . . . . . . . . . . . . . . . 1 Damage (core) 1 | . . . . . . . . . . . . . . 1 . Siege Activations . | . . . . . . . . . . . . . . . . Robots Corrupted 2 | . . . . . . . . . . . . . . . 2 Combat Hostiles 2 | . . . . . . . . . . . . . . . 2 Parts Fried 17 | . . . . . . . . . 3 . . 2 . . 12 Impact Corruptions 1 | . . . . . . . . . 1 . . . . . . Robots Melted 28 | . 1 2 2 2 . 4 . . 9 1 . 6 . . 1 Combat Hostiles 23 | . 1 2 1 2 . 3 . . 7 1 . 5 . . 1 Parts Melted 151 | 1 10 21 9 7 . 10 1 . 48 4 . 31 4 1 4 Heat Transferred 43515 | 1110 3047 4915 2204 3108 387 3752 535 148 12262 1359 . 5766 824 224 3874 Parts Sabotaged 2 | . . . . . . . . . . . . 2 . . . Parts Stolen . | . . . . . . . . . . . . . . . . Parts Stripped . | . . . . . . . . . . . . . . . . Power Chain Reactions 3 | . . . . . . . . . . . . 2 . . 1 Missiles Intercepted . | . . . . . . . . . . . . . . . . Alert | -11 -10 -9 -8 -7 -6 -6 -5 -5 -5 -5 -5 -4 -4 -4 -3 ------- Run | Jun Mat Mat Mat Fac Fac Ext Fac Was Fac Upp Upp Fac Upp Upp Res Peak Influence 1223 | 60 285 520 536 229 321 258 158 135 1223 . . 1039 . . 975 Initial 351 | . 39 46 153 189 95 156 126 55 84 . . 351 . . 267 Average 325 | 25 96 358 331 133 201 203 136 95 403 . . 667 . . 440 Maximum Alert Level 4 | . 1 2 2 1 1 1 . . 4 . . 3 . . 3 Low Security (%) 43 | 100 93 7 18 95 51 36 100 100 42 . . . . . 12 Level 1 23 | . 6 58 36 4 48 63 . . 14 . . 3 . . 38 Level 2 18 | . . 33 45 . . . . . 16 . . 55 . . 26 Level 3 13 | . . . . . . . . . 26 . . 40 . . 22 Level 4 . | . . . . . . . . . . . . . . . . Level 5 . | . . . . . . . . . . . . . . . . High Security . | . . . . . . . . . . . . . . . . Max Security . | . . . . . . . . . . . . . . . . Squads Dispatched 45 | . 4 3 4 5 . 1 . . 12 . . 5 . . 11 Investigation 9 | . 1 2 1 3 . . . . 2 . . . . . . Extermination 13 | . . . . 1 . . . . 6 . . 1 . . 5 Reinforcement 15 | . 3 1 2 1 . 1 . . 4 . . 1 . . 2 Assault 5 | . . . 1 . . . . . . . . 3 . . 1 Garrison 3 | . . . . . . . . . . . . . . . 3 Intercept . | . . . . . . . . . . . . . . . . Searches Triggered . | . . . . . . . . . . . . . . . . Construction Impeded 4 | . . . . . . 1 . . 1 . . 1 . . 1 Haulers Reinforced 1 | . . . . . . . . . 1 . . . . . . Active Scanning Responses . | . . . . . . . . . . . . . . . . Cargo Convoy Interrupts . | . . . . . . . . . . . . . . . . Stealth | -11 -10 -9 -8 -7 -6 -6 -5 -5 -5 -5 -5 -4 -4 -4 -3 --------- Run | Jun Mat Mat Mat Fac Fac Ext Fac Was Fac Upp Upp Fac Upp Upp Res Distress Signals 17 | . 3 2 . 1 . 1 . . 6 . . . . . 4 Communications Jammed . | . . . . . . . . . . . . . . . . Distress Signals . | . . . . . . . . . . . . . . . . Times Spotted 332 | . 28 40 23 19 4 7 . 6 71 9 . 42 5 1 77 Peak Tracking Total 17 | . 5 4 6 6 3 4 . 5 7 6 . 9 4 1 17 Tactical Retreats 25 | . 1 2 1 4 . . . . 8 1 . 3 . . 5 Traps | -11 -10 -9 -8 -7 -6 -6 -5 -5 -5 -5 -5 -4 -4 -4 -3 ------- Run | Jun Mat Mat Mat Fac Fac Ext Fac Was Fac Upp Upp Fac Upp Upp Res Traps Triggered 6 | . 1 1 . . . . 1 . . . . . . . 3 Indirectly . | . . . . . . . . . . . . . . . . Trap Hack Attempts . | . . . . . . . . . . . . . . . . Triggered . | . . . . . . . . . . . . . . . . Disarmed . | . . . . . . . . . . . . . . . . Reprogrammed . | . . . . . . . . . . . . . . . . Reused . | . . . . . . . . . . . . . . . . Traps Extracted . | . . . . . . . . . . . . . . . . Installed . | . . . . . . . . . . . . . . . . Triggered . | . . . . . . . . . . . . . . . . Machines | -11 -10 -9 -8 -7 -6 -6 -5 -5 -5 -5 -5 -4 -4 -4 -3 ---------- Run | Jun Mat Mat Mat Fac Fac Ext Fac Was Fac Upp Upp Fac Upp Upp Res Machines Disabled 20 | . 1 . 1 . 6 . . . 3 . . 7 . . 2 Max in Single Turn 6 | . 1 . 1 . 6 . . . 1 . . 4 . . 1 Garrison Access 1 | . . . 1 . . . . . . . . . . . . Machines Repaired . | . . . . . . . . . . . . . . . . Machines Sabotaged . | . . . . . . . . . . . . . . . . Overloaded Fab Kills . | . . . . . . . . . . . . . . . . Hacking | -11 -10 -9 -8 -7 -6 -6 -5 -5 -5 -5 -5 -4 -4 -4 -3 --------- Run | Jun Mat Mat Mat Fac Fac Ext Fac Was Fac Upp Upp Fac Upp Upp Res Machines Accessed 54 | . 7 9 5 9 3 1 1 . 12 . . 2 . . 5 Terminals 38 | . 6 8 4 6 2 1 1 . 5 . . 2 . . 3 Fabricators 5 | . . . . 3 . . . . 2 . . . . . . Repair Stations 5 | . 1 1 . . . . . . 2 . . . . . 1 Recycling Units 4 | . . . . . 1 . . . 2 . . . . . 1 Scanalyzers 1 | . . . . . . . . . 1 . . . . . . Garrison Access 1 | . . . 1 . . . . . . . . . . . . Total Hacks 149 | . 19 37 17 24 9 3 1 . 29 . . 3 . . 7 Successful 64 | . 8 20 6 12 3 1 1 . 11 . . . . . 2 Failed 85 | . 11 17 11 12 6 2 . . 18 . . 3 . . 5 Catastrophic 27 | . 3 5 4 2 1 . . . 8 . . 1 . . 3 Database Lockouts . | . . . . . . . . . . . . . . . . Manual 49 | . 11 16 9 4 1 . . . 8 . . . . . . Terminals 105 | . 16 28 14 16 7 3 1 . 14 . . 3 . . 3 Fabricators 14 | . . . . 8 . . . . 6 . . . . . . Repair Stations 19 | . 3 9 . . . . . . 4 . . . . . 3 Recycling Units 7 | . . . . . 2 . . . 4 . . . . . 1 Scanalyzers 1 | . . . . . . . . . 1 . . . . . . Garrison Access 3 | . . . 3 . . . . . . . . . . . . Terminal Hacks 43 | . 6 12 6 8 3 1 1 . 6 . . . . . . Record 1 | . . . . . . . . . 1 . . . . . . Part Schematic 7 | . 2 1 2 1 . . . . 1 . . . . . . Robot Analysis 2 | . . 1 . . 1 . . . . . . . . . . Prototype ID Bank 12 | . 4 5 2 . . . . . 1 . . . . . . Open Door 1 | . . . . . . 1 . . . . . . . . . Open DSF 2 | . . . . 1 . . 1 . . . . . . . . Level Access Points 1 | . . . . 1 . . . . . . . . . . . Branch Access Points 3 | . . 1 . . 1 . . . 1 . . . . . . Emergency Access Points 1 | . . 1 . . . . . . . . . . . . . Terminal Index 1 | . . . . 1 . . . . . . . . . . . Fabricator Index 1 | . . . . 1 . . . . . . . . . . . Alert Level 2 | . . 1 . 1 . . . . . . . . . . . Unreport Threat 4 | . . 1 1 1 . . . . 1 . . . . . . Assault Status 1 | . . . 1 . . . . . . . . . . . . Recall Investigation 1 | . . 1 . . . . . . . . . . . . . Zone Layout 3 | . . . . 1 1 . . . 1 . . . . . . Fabricator Hacks 8 | . . . . 4 . . . . 4 . . . . . . Load Schematic 5 | . . . . 3 . . . . 2 . . . . . . Build 3 | . . . . 1 . . . . 2 . . . . . . Repair Station Hacks 12 | . 2 8 . . . . . . . . . . . . 2 Scan Component 6 | . 1 4 . . . . . . . . . . . . 1 Repair 6 | . 1 4 . . . . . . . . . . . . 1 Recycling Unit Hacks 1 | . . . . . . . . . 1 . . . . . . Retrieve Components 1 | . . . . . . . . . 1 . . . . . . Scanalyzer . | . . . . . . . . . . . . . . . . Garrison Access Hacks . | . . . . . . . . . . . . . . . . Unauthorized Hacks . | . . . . . . . . . . . . . . . . Terminals . | . . . . . . . . . . . . . . . . Fabricators . | . . . . . . . . . . . . . . . . Repair Stations . | . . . . . . . . . . . . . . . . Recycling Units . | . . . . . . . . . . . . . . . . Scanalyzers . | . . . . . . . . . . . . . . . . Garrison Access . | . . . . . . . . . . . . . . . . Data Cores Recovered 7 | . . 2 1 . . . . . 3 . . . . . 1 Used 3 | . . 1 . . . . . . 1 . . . . . 1 Hacking Detections 51 | . 7 9 5 8 3 1 . . 12 . . 2 . . 4 Full Trace Events 10 | . 1 2 2 3 . . . . 2 . . . . . . Feedback Events . | . . . . . . . . . . . . . . . . Feedback Blocked . | . . . . . . . . . . . . . . . . Robot Schematics Acquired . | . . . . . . . . . . . . . . . . Robots Built . | . . . . . . . . . . . . . . . . Authchips . | . . . . . . . . . . . . . . . . Time . | . . . . . . . . . . . . . . . . Total Robot Build Rating . | . . . . . . . . . . . . . . . . Part Schematics Acquired 7 | . 2 1 2 1 . . . . 1 . . . . . . Parts Built 6 | . . . . 2 . . . . 4 . . . . . . Authchips . | . . . . . . . . . . . . . . . . Time 93 | . . . . 31 . . . . 62 . . . . . . Total Part Build Rating 12 | . . . . 4 . . . . 8 . . . . . . Parts Repaired 6 | . 1 4 . . . . . . . . . . . . 1 Time 186 | . 26 110 . . . . . . . . . . . . 50 Parts Recycled . | . . . . . . . . . . . . . . . . Recycled Matter . | . . . . . . . . . . . . . . . . Retrieved Matter . | . . . . . . . . . . . . . . . . Retrieved Components 10 | . . . . . . . . . 10 . . . . . . Parts Scanalyzed . | . . . . . . . . . . . . . . . . Part Schematics Acquired . | . . . . . . . . . . . . . . . . Parts Damaged . | . . . . . . . . . . . . . . . . Bothacking | -11 -10 -9 -8 -7 -6 -6 -5 -5 -5 -5 -5 -4 -4 -4 -3 ------------ Run | Jun Mat Mat Mat Fac Fac Ext Fac Was Fac Upp Upp Fac Upp Upp Res Used RIF Installer . | . . . . . . . . . . . . . . . . Robots Hacked . | . . . . . . . . . . . . . . . . Non-combat . | . . . . . . . . . . . . . . . . Combat . | . . . . . . . . . . . . . . . . Robot Hacks Applied . | . . . . . . . . . . . . . . . . Relay Couplers Released 2 | . . . 2 . . . . . . . . . . . . Machine Destruction 2 | . . . 2 . . . . . . . . . . . . Fabnet Peak Effective % . | . . . . . . . . . . . . . . . . Robots Rewired . | . . . . . . . . . . . . . . . . Allies Hacked . | . . . . . . . . . . . . . . . . Hacks Repelled . | . . . . . . . . . . . . . . . . Allies | -11 -10 -9 -8 -7 -6 -6 -5 -5 -5 -5 -5 -4 -4 -4 -3 -------- Run | Jun Mat Mat Mat Fac Fac Ext Fac Was Fac Upp Upp Fac Upp Upp Res Total Allies . | . . . . . . . . . . . . . . . . Largest Group . | . . . . . . . . . . . . . . . . Highest-Rated Group . | . . . . . . . . . . . . . . . . Highest-Rated Ally . | . . . . . . . . . . . . . . . . Total Orders . | . . . . . . . . . . . . . . . . Ally Attacks . | . . . . . . . . . . . . . . . . Total Damage . | . . . . . . . . . . . . . . . . Kills . | . . . . . . . . . . . . . . . . Allies Corrupted . | . . . . . . . . . . . . . . . . Allies Melted . | . . . . . . . . . . . . . . . . Intel | -11 -10 -9 -8 -7 -6 -6 -5 -5 -5 -5 -5 -4 -4 -4 -3 ------- Run | Jun Mat Mat Mat Fac Fac Ext Fac Was Fac Upp Upp Fac Upp Upp Res Robot Analysis Total 2 | . . 1 . . 1 . . . . . . . . . . Derelict Logs Recovered 2 | . . . . . . . . . . 2 . . . . . Drone Launches . | . . . . . . . . . . . . . . . . Drone Recoveries . | . . . . . . . . . . . . . . . . Exploration | -11 -10 -9 -8 -7 -6 -6 -5 -5 -5 -5 -5 -4 -4 -4 -3 ------------- Run | Jun Mat Mat Mat Fac Fac Ext Fac Was Fac Upp Upp Fac Upp Upp Res Turns Passed 13643 | 252 1789 1602 565 1111 336 389 110 139 3293 617 34 946 639 30 1791 Spaces Moved 7718 | 135 631 858 338 755 268 208 57 142 2040 437 29 481 429 12 898 Core 282 | 7 . . . . . . . 104 119 . . . . . 52 Treads 513 | . . . . . . . . . 23 . . . . . 490 Legs 6166 | 128 631 858 338 755 268 208 57 38 1807 437 29 478 . . 134 Wheels 559 | . . . . . . . . . . . . 3 429 12 115 Hover 91 | . . . . . . . . . 91 . . . . . . Flight 107 | . . . . . . . . . . . . . . . 107 Fastest Speed 34 | 50 120 120 120 120 120 120 120 50 50 120 120 105 120 170 34 Average Speed 129 | 120 201 120 120 120 120 127 145 80 114 120 120 142 131 170 139 Slowest Speed 400 | 200 260 190 120 120 120 190 190 260 190 190 120 400 170 170 260 Overloaded Moves . | . . . . . . . . . . . . . . . . Propulsion Burnouts . | . . . . . . . . . . . . . . . . Robots Hopped 8 | . . . . . . . . . . . . . . . 8 Cave-ins Triggered 1 | . . . . . . . . . . . . . 1 . . Exploration Rate (%) 34 | 6 88 68 36 20 8 26 1 77 43 69 9 11 61 5 28 Regions Visited 15 Branch Regions 5 Pre-discovered Areas . | . . . . . . . . . . . . . . . . Known Exits Taken 3 | . . . . 1 1 . . . 1 . . . . . . Unknown Exits Taken 10 | 1 1 1 1 . . 1 . . . 1 1 1 1 1 . Scrap Searched 3 | . . . . . . . . . . 1 . . 2 . . Spaces Dug 11 | . . . . . . . . . . . . . 11 . . Terrain Destroyed 718 | . . 18 . . 21 80 . 78 101 22 . 138 35 1 224 Melee . | . . . . . . . . . . . . . . . . Projectile 155 | . . . . . . 1 . . 76 22 . 15 16 1 24 AOE 561 | . . 18 . . 21 79 . 78 25 . . 123 19 . 198 Terrain Rammed . | . . . . . . . . . . . . . . . . Walls Destroyed . | . . . . . . . . . . . . . . . . Machines Disabled . | . . . . . . . . . . . . . . . . Actions | -11 -10 -9 -8 -7 -6 -6 -5 -5 -5 -5 -5 -4 -4 -4 -3 --------- Run | Jun Mat Mat Mat Fac Fac Ext Fac Was Fac Upp Upp Fac Upp Upp Res Total 10014 | 175 977 1246 431 871 278 256 69 153 2757 492 28 595 466 14 1206 Wait 1077 | . 204 210 15 38 . 6 2 1 443 32 . 24 15 . 87 Move 7691 | 134 630 857 337 754 267 207 57 141 2039 436 28 480 428 11 885 Hop 5 | . . . . . . . . . . . . . . . 5 Pick Up 152 | 8 24 15 6 8 . 2 . 1 46 2 . 12 1 . 27 Fast Attach 86 | 7 . 6 3 2 1 . 3 . 27 . . 5 1 . 31 Attach 95 | . 4 5 2 10 1 7 1 1 20 7 . 13 5 . 19 Detach 16 | . . 1 . 1 . . . 1 9 . . 1 . . 3 Swap 119 | 1 10 23 14 8 6 2 . 3 23 2 . 2 . . 25 Drop 143 | 2 13 30 20 7 2 . . . 42 . . . . . 27 Fire 605 | 23 88 97 34 40 1 32 6 5 104 13 . 58 15 3 86 Melee . | . . . . . . . . . . . . . . . . Ram 5 | . . . . . . . . . . . . . . . 5 Kick 16 | . 4 2 . 3 . . . . 4 . . . . . 3 Crush 3 | . . . . . . . . . . . . . . . 3 Escape Stasis . | . . . . . . . . . . . . . . . . Rewire 1 | . . . . . . . . . . . . . 1 . . Trap . | . . . . . . . . . . . . . . . . Miscellaneous . | . . . . . . . . . . . . . . . . Route ------- -11/Junkyard -10/Materials (discovered 4 exits: *Mat x2 / [*Min x2]) -9/Materials (discovered 4 exits: *Mat x3 / Min) -8/Materials -7/Factory (discovered 6 exits: *Fac x4 / [*Sto] / [*Low]) -6/Factory (discovered 4 exits: Low x2 / *Ext x2) -6/Extension -5/Factory -5/Waste -5/Factory (discovered 3 exits: *Fac / *Upp x2) -5/Upper Caves -5/Upper Caves -4/Factory -4/Upper Caves -4/Upper Caves -3/Research History --------- Turn | Location | Event 15 | -11/Junkyard | Discovered new exit (range 15) 253 | -11/Junkyard | Entered Materials 305 | -10/Materials | Build established: Mutant 625 | -10/Materials | Discovered new exit (range 16) 768 | -10/Materials | Discovered new exit (range 10) 1641 | -10/Materials | Discovered new exit (range 12) 1735 | -10/Materials | Core integrity fell below 50% 1884 | -10/Materials | Discovered new exit (range 16) 1965 | -10/Materials | Repaired Aluminum Leg 2042 | -10/Materials | Entered another Materials area 2042 | -9/Materials | Evolved 2 slots: Propulsion x2 2067 | -9/Materials | Build established: Scavenger-Mutant 2141 | -9/Materials | Identified exit to Mines 2514 | -9/Materials | Discovered new exit (range 5) 2673 | -9/Materials | Repaired Imp. Aluminum Leg 2701 | -9/Materials | Repaired Aluminum Leg 2728 | -9/Materials | Repaired Aluminum Leg 2756 | -9/Materials | Repaired Aluminum Leg 3064 | -9/Materials | Discovered new exit (range 16) 3354 | -9/Materials | Discovered new exit (range 3) 3644 | -9/Materials | Entered another Materials area 3644 | -8/Materials | Evolved 2 slots: Utility x1, Weapon x1 3944 | -8/Materials | Build established: Scavenger-Gunner 4196 | -8/Materials | Discovered new exit (range 9) 4209 | -8/Materials | Entered Factory 4209 | -7/Factory | Evolved 2 slots: Utility x2 4405 | -7/Factory | Identified exit to Factory 4636 | -7/Factory | Fabricated Imp. Aluminum Leg? 4746 | -7/Factory | Lost 4 parts (3u1w) 4842 | -7/Factory | Discovered new exit (range 6) 4962 | -7/Factory | Discovered new exit (range 16) 5320 | -7/Factory | Entered another Factory area 5320 | -6/Factory | Evolved 2 slots: Propulsion x1, Utility x1 5422 | -6/Factory | Identified exit to Lower Caves 5422 | -6/Factory | Identified exit to Extension 5656 | -6/Factory | Entered Extension 5665 | -6/Extension | Build established: Scavenger-Tank 5761 | -6/Extension | Spotted B-75 Beast 5825 | -6/Extension | Destroyed B-75 Beast 5928 | -6/Extension | Spotted B-75 Beast 5948 | -6/Extension | Destroyed B-75 Beast 5988 | -6/Extension | Lost 7 parts (4n1u2w) 6006 | -6/Extension | Disrupted transfer network 6043 | -6/Extension | Discovered new exit (range 3) 6045 | -6/Extension | Entered Factory 6045 | -5/Factory | Evolved 2 slots: Power x1, Weapon x1 6059 | -5/Factory | Identified exit to DSF 6155 | -5/Factory | Sucked down chute 6155 | -5/Factory | Entered Waste 6175 | -5/Waste | Found Gamma Bomb Array 6178 | -5/Waste | Spotted C-40 Crusher 6179 | -5/Waste | Spotted C-40 Crusher 6202 | -5/Waste | Destroyed C-40 Crusher 6206 | -5/Waste | Spotted C-40 Crusher 6215 | -5/Waste | Spotted C-40 Crusher 6218 | -5/Waste | Crushed by Compactor (1 part destroyed, 2 dropped) 6230 | -5/Waste | Crushed by Compactor (1 part destroyed, 2 dropped) 6233 | -5/Waste | Crushed by Compactor (1 part destroyed, 2 dropped) 6239 | -5/Waste | Crushed by Compactor (1 part destroyed, 1 dropped) 6242 | -5/Waste | Crushed by Compactor (1 part destroyed, 1 dropped) 6259 | -5/Waste | Spotted C-40 Crusher 6260 | -5/Waste | Spotted C-40 Crusher 6273 | -5/Waste | Lost 8 parts (2p3n2u1w) 6289 | -5/Waste | Discovered new exit (range 12) 6294 | -5/Waste | Entered Factory 6411 | -5/Factory | Identified exit to Upper Caves 6622 | -5/Factory | Build established: Hacker-Mutant 6729 | -5/Factory | Fabricated Imp. Aluminum Leg (x2) 7110 | -5/Factory | Build established: Scavenger-Gunner 7210 | -5/Factory | Discovered new exit (range 11) 7579 | -5/Factory | Lost 3 parts (1n2u) 8539 | -5/Factory | Core integrity fell below 50% 8650 | -5/Factory | System corruption reached 10% 8686 | -5/Factory | Lost 3 parts (2n1u) 8757 | -5/Factory | Fabricated Imp. Aluminum Leg? 9587 | -5/Factory | Entered Upper Caves 9675 | -5/Upper Caves | Lost 6 parts (3n2u1w) 9967 | -5/Upper Caves | Attracted the attention of an 0b10 checkpoint 10072 | -5/Upper Caves | Learned Factory terminal intel 10086 | -5/Upper Caves | Learned Factory terminal intel 10192 | -5/Upper Caves | Discovered new exit (range 8) 10204 | -5/Upper Caves | Entered another Upper Caves area 10227 | -5/Upper Caves | Discovered new exit (range 10) 10238 | -5/Upper Caves | Entered Factory 10238 | -4/Factory | Evolved 2 slots: Utility x1, Weapon x1 10239 | -4/Factory | Loaded intel: 26 terminal locations 10310 | -4/Factory | Spotted B-86 Titan 10488 | -4/Factory | First assault squad dispatched 10871 | -4/Factory | Destroyed 9 combat bots 10881 | -4/Factory | Lost 6 parts (4n2w) 11009 | -4/Factory | Lost 3 parts (1n1u1w) 11062 | -4/Factory | Discovered new exit (range 15) 11154 | -4/Factory | Lost 7 parts (2p2n1u2w) 11184 | -4/Factory | Entered Upper Caves 11478 | -4/Upper Caves | Spotted B-86 Titan 11536 | -4/Upper Caves | Attracted the attention of an 0b10 checkpoint 11626 | -4/Upper Caves | Crushed by falling debris 11626 | -4/Upper Caves | System corruption reached 10% 11806 | -4/Upper Caves | Discovered new exit (range 10) 11823 | -4/Upper Caves | Entered another Upper Caves area 11823 | -4/Upper Caves | Discovered new exit (range 12) 11853 | -4/Upper Caves | Entered Research 11853 | -3/Research | Evolved 2 slots: Propulsion x1, Utility x1 12317 | -3/Research | Repaired Lrn. Missile Launcher 12363 | -3/Research | Found Fusion Bomb Launcher 12417 | -3/Research | Found Unknown Device 12417 | -3/Research | Identified Antimissile System 12468 | -3/Research | System corruption reached 10% 13195 | -3/Research | System corruption reached 30% 13229 | -3/Research | Lost 10 parts (1p4n1u4w) 13325 | -3/Research | Garrison activated, responded to threat 13339 | -3/Research | Spotted B-86 Titan 13389 | -3/Research | First assault squad dispatched 13444 | -3/Research | Lost 4 parts (1p1n2w) 13560 | -3/Research | Core integrity fell below 50% 13587 | -3/Research | Lost 18 parts (1p5n5u7w) 13617 | -3/Research | Core integrity fell below 20% 13644 | -3/Research | Destroyed by S-43 Plague with Heavy Machine Gun Last Messages --------------- 13603_ ALERT: Rogue bot located, Programmers report to Research Zone 6S. 13615_ System corrupted: Impulse Thruster Array rejected. 13615_ Acquired Impulse Thruster Array. 13615_ Adv. Heat Sink destroyed. 13618_ S-43 Plague destroyed. 13618_ Acquired Nuclear Pulse Array. 13620_ Impulse Thruster Array destroyed. 13620_ Acquired Nuclear Pulse Array. 13621_ K-01 Serf collects debris. 13622_ Acquired Nuclear Pulse Array. 13624_ Nuclear Pulse Array destroyed. 13624_ Penetrated by Slug. 13624_ K-01 Serf collects debris. 13625_ Nuclear Pulse Array destroyed. 13625_ R-10 Processor collects Xenon Bombardment Thruster. 13631_ System corrupted: Component data lost. 13631_ Imp. Targeting Computer destroyed. 13638_ O-24 Administrator: "IFF HANDSHAKE FAILED. SECURING TERMINAL." 13641_ Nuclear Pulse Array destroyed. [Achievement: 20k Club] Map ----- +----------------------------------------------------+ | ?????????????????????????????????????????????????? | | ?????????????????????????????????????????????????? | | ?????????????????????????????????????????????????? | | ?????????????????????????????????????????????????? | | ?????????????????????????????????????????????????? | | ?????????????????????????????????????????????????? | | ?????????????????????????????????????????????????? | | ?????????????????????????????????????????????????? | | ?????????????????????????????????????????????????? | | ?????????????????????????????????????????????????? | | ?????????????????????????????????????????????????? | | ?????????????????????????????????????????????????? | | ?????????????????????????????????????????????????? | | ???????????????? ????????????????????????????????? | | ??????????????? #####+###########+###### ???????? | | ??????????????? ????????? | | ???????????????? ?????????? | | ????????????????? ?????????? | | ?????????????????? t ??????????? | | ???????????????????# #???????????? | | ???????????????????# """""" #????######## | | ???????????????????# """""" ##???# ! # | | ???????????????????# """""" ##### # | | ???????????????????# R # | | ???????????????????#t ss sss | | ???????????????????# @ s #??## # | | ???????????????????# ############# #???# # | | ???????????????????# ??????????????# #???### #### | | ???????????????????#????????????????# #?????# #??? | | ??????????????????????????????????###+#######/##?? | | ??????????????????????????????????# #?? | | ??????????????????????????????????# #?? | | ??????????????????????????????????#! #?? | | ??????????????????????????????????# """ #?? | | ??????????????????????????????????# """ #?? | | ??????????????????????????????????# """ #?? | | ??????????????????????????????????# """ #?? | | ??????????????????????????????????# """ +?? | | ??????????????????????????????????# == """ #?? | | ??????????????????????????????????# =! """ #?? | | ??????????????????????????????????# =! ? #?? | | ??????????????????????????????????# ? #?? | | ??????????????????????????????????##########?###?? | | ?????????????????????????????????????????????????? | | ?????????????????????????????????????????????????? | | ?????????????????????????????????????????????????? | | ?????????????????????????????????????????????????? | | ?????????????????????????????????????????????????? | | ?????????????????????????????????????????????????? | | ?????????????????????????????????????????????????? | +----------------------------------------------------+ Best States ------------- Heat Dissipation 117 Energy Generation 47 Energy Capacity 550 Matter Stores 300 Matter Capacity 300 Sight Range 16 Robot Scan Range 16 Terrain Scan Range 24 Terrain Scan Density 10 Evasion (%) 62 Targeting Accuracy 6 Target Analysis 8 Armor Integrity Analysis 30 Recoil Reduction 6 Particle Charging 20 Salvage Targeting 3 Offensive Hacking 20 Defensive Hacking 20 Item Schematics ----------------- Lrg. Storage Unit | -10/Materials | Hacked Structural Scanner | -10/Materials | Hacked Imp. Aluminum Leg | -9/Materials | Hacked Cooling System | -8/Materials | Hacked Imp. Ion Engine | -8/Materials | Hacked Drone Bay | -7/Factory | Hacked Imp. Hacking Suite | -5/Factory | Hacked Robot Schematics ------------------ None Fabricated ------------ Imp. Aluminum Leg | x2 | -7/Factory Imp. Aluminum Leg | x2 | -5/Factory Imp. Aluminum Leg | x2 | -5/Factory Alien Tech Used ----------------- None Achievements -------------- 20k Club Preemptive Strike Pyromaniac Challenges ------------ None Game ------ Seed SurveybotWeaponFacilitator Manual? 0 Play Time 02:42:58 Cumulative 93.5 hours Start 2023.09.18 @ 12:36:42 End 2023.09.18 @ 15:22:52 Sessions 1 Manual Loads 0 Difficulty Rogue Special Mode None Game No. 59 Rogue 59 Adventurer 0 Explorer 0 Win Type - Total 0 Types 0/0/0/0/0/0/0/0/0 Lore% 37 Gallery% 41 Achievement% 34 Wizard Run 0 Options --------- ASCII 0 Keyboard 1 Movement Vi Keybinds 0 Fullscreen 2 Font 18/SmallcapsGlow Map View 76x50 Tactical HUD 1 Map Filters NONE Filters NONE Steam 1 RUN: 8be8a160-e8c6-49f7-8e78-405ac7e4e6fc